fUSD/lending_fUSD_20241222
["ID","MTS","AMOUNT","RATE_DAILY","PERIOD"]
[346304323,1734881454194,-597.67,0.00019726,2]
[346304324,1734881454204,-600.56,0.00019726,2]
[346304325,1734881454213,-2153.46,0.00019726,2]
[346304326,1734881454223,-2582.39,0.00019726,2]
[346304327,1734881454232,-797.39,0.00019726,2]
[346304328,1734881454242,-500.0,0.00019726,2]
[346304329,1734881454251,-500.0,0.00019726,2]
[346304330,1734881454260,-500.0,0.00019726,2]
[346304331,1734881454269,-760.95,0.00019726,2]
[346304332,1734881454279,-2950.68,0.00019726,2]
[346304333,1734881454288,-500.0,0.00019726,2]
[346304334,1734881454298,-500.0,0.00019726,2]
[346304335,1734881454307,-6006.68,0.00019726,2]
[346304336,1734881454316,-500.0,0.00019726,2]
[346304337,1734881454325,-1950.81,0.00019726,2]
[346304338,1734881454334,-154.57,0.00019726,2]
[346304339,1734881454343,-500.0,0.00019726,2]
[346304340,1734881454352,-928.99,0.00019726,2]
[346304341,1734881454362,-566.55,0.00019726,2]
[346304342,1734881454371,-500.0,0.00019726,2]
[346304343,1734881454380,-866.58,0.00019726,2]
[346304344,1734881454390,-406.08,0.00019726,2]
[346304345,1734881454399,-500.0,0.00019726,2]
[346304346,1734881454409,-777.05,0.00019726,2]
[346304347,1734881454418,-500.0,0.00019726,2]
[346304348,1734881454428,-36264.67,0.00019726,2]
[346304349,1734881454437,-615.29,0.00019726,2]
[346304350,1734881454447,-642.56,0.00019726,2]
[346304351,1734881454457,-500.0,0.00019726,2]
[346304352,1734881454467,-586.72,0.00019726,2]
[346304353,1734881454476,-500.0,0.00019726,2]
[346304354,1734881454486,-1347.11,0.00019726,2]
[346304355,1734881454495,-5695.88,0.00019726,2]
[346304356,1734881454505,-500.0,0.00019726,2]
[346304357,1734881454514,-500.0,0.00019726,2]
[346304358,1734881454524,-50596.19,0.00019726,2]
[346304359,1734881454534,-500.0,0.00019726,2]
[346304360,1734881454543,-500.0,0.00019726,2]
[346304361,1734881454552,-8820.76,0.00019726,2]
[346304362,1734881454562,-500.0,0.00019726,2]
[346304363,1734881454571,-500.0,0.00019726,2]
[346304364,1734881454581,-500.0,0.00019726,2]
[346304365,1734881454591,-500.0,0.00019726,2]
[346304366,1734881454600,-500.0,0.00019726,2]
[346304367,1734881454610,-682.03,0.00019726,2]
[346304368,1734881454619,-515.93,0.00019726,2]
[346304369,1734881454629,-500.0,0.00019726,2]
[346304370,1734881454638,-1437.44,0.00019726,2]
[346304371,1734881454647,-500.0,0.00019726,2]
[346304372,1734881454657,-500.0,0.00019726,2]
[346304373,1734881454666,-945.81,0.00019726,2]
[346304374,1734881454675,-646.11,0.00019726,2]
[346304375,1734881454685,-500.0,0.00019726,2]
[346304376,1734881454695,-829.13,0.00019726,2]
[346304377,1734881454705,-603.72,0.00019726,2]
[346304378,1734881454715,-4345.75,0.00019726,2]
[346304379,1734881454726,-663.72,0.00019726,2]
[346304380,1734881454735,-1355.16,0.00019726,2]
[346304381,1734881454745,-6113.02,0.00019726,2]
[346304382,1734881454754,-9131.21,0.00019726,2]
[346304383,1734881454763,-500.0,0.00019726,2]
[346304384,1734881454777,-760.11,0.00019726,2]
[346304385,1734881454786,-752.19,0.00019726,2]
[346304386,1734881454796,-500.0,0.00019726,2]
[346304387,1734881454805,-500.0,0.00019726,2]
[346304388,1734881454814,-6436.96,0.00019726,2]
[346304389,1734881454823,-500.0,0.00019726,2]
[346304390,1734881454833,-829.19,0.00019726,2]
[346304391,1734881454843,-683.95,0.00019726,2]
[346304392,1734881454853,-703.93,0.00019726,2]
[346304393,1734881454862,-500.0,0.00019726,2]
[346304394,1734881454871,-82240.9,0.00019726,2]
[346304395,1734881454880,-929.49,0.00019726,2]
[346304396,1734881454889,-1082.63,0.00019726,2]
[346304397,1734881454898,-3271.98,0.00019726,2]
[346304398,1734881454908,-14649.77,0.00019726,2]
[346304399,1734881454917,-500.0,0.00019726,2]
[346304400,1734881454927,-383.85710765,0.00019726,2]
[346304401,1734881454936,-3091.65,0.00019726,2]
[346304402,1734881454946,-23276.36,0.00019726,2]
[346304403,1734881454955,-1401.52,0.00019726,2]
[346304404,1734881454964,-8975.57,0.00019726,2]
[346304405,1734881454973,-953.7,0.00019726,2]
[346304406,1734881454982,-500.0,0.00019726,2]
[346304407,1734881454991,-500.0,0.00019726,2]
[346304408,1734881455001,-2934.22,0.00019726,2]
[346304409,1734881455010,-1629.65,0.00019726,2]
[346304410,1734881455019,-21960.92,0.00019726,2]
[346304411,1734881455028,-500.0,0.00019726,2]
[346304412,1734881455037,-1075.74,0.00019726,2]
[346304413,1734881455047,-581.11,0.00019726,2]
[346304414,1734881455056,-500.0,0.00019726,2]
[346304415,1734881455065,-754.14,0.00019726,2]
[346304416,1734881455075,-2484.39,0.00019726,2]
[346304417,1734881455084,-500.0,0.00019726,2]
[346304418,1734881455093,-5488.75,0.00019726,2]
[346304419,1734881455102,-500.0,0.00019726,2]
[346304420,1734881455112,-701.23,0.00019726,2]
[346304421,1734881455121,-1647.78,0.00019726,2]
[346304422,1734881455130,-500.0,0.00019726,2]
[346304423,1734881455140,-7971.0,0.00019726,2]
[346304424,1734881455149,-632.65,0.00019726,2]
[346304425,1734881455158,-500.0,0.00019726,2]
[346304426,1734881455168,-593.34,0.00019726,2]
[346304427,1734881455177,-500.0,0.00019726,2]
[346304428,1734881455186,-1334.97,0.00019726,2]
[346304429,1734881455196,-2503.31,0.00019726,2]
[346304430,1734881455205,-1493.49,0.00019726,2]
[346304431,1734881455216,-500.0,0.00019726,2]
[346304432,1734881455225,-801.38,0.00019726,2]
[346304433,1734881455235,-2016.09,0.00019726,2]
[346304434,1734881455244,-500.0,0.00019726,2]
[346304435,1734881455254,-8019.92,0.00019726,2]
[346304436,1734881455263,-6945.02,0.00019726,2]
[346304437,1734881455272,-500.0,0.00019726,2]
[346304438,1734881455281,-4387.5,0.00019726,2]
[346304439,1734881455291,-500.0,0.00019726,2]
[346304440,1734881455300,-212.10886188,0.00019726,2]
[346304441,1734881455310,-500.0,0.00019726,2]
[346304442,1734881455319,-638.78,0.00019726,2]
[346304443,1734881455328,-500.0,0.00019726,2]
[346304444,1734881455338,-5309.39,0.00019726,2]
[346304445,1734881455347,-646.98,0.00019726,2]
[346304446,1734881455356,-778.03,0.00019726,2]
[346304447,1734881455366,-3781.1,0.00019726,2]
[346304448,1734881455375,-619.88301094,0.00019726,2]
[346304449,1734881455384,-500.0,0.00019726,2]
[346304450,1734881455394,-1057.33,0.00019726,2]
[346304451,1734881455403,-500.0,0.00019726,2]
[346304452,1734881455413,-2039.69,0.00019726,2]
[346304453,1734881455422,-842.54,0.00019726,2]
[346304454,1734881455433,-500.0,0.00019726,2]
[346304455,1734881455443,-28779.14,0.00019726,2]
[346304456,1734881455453,-1138.14,0.00019726,2]
[346304457,1734881455463,-500.0,0.00019726,2]
[346304458,1734881455473,-2055.22,0.00019726,2]
[346304459,1734881455482,-500.0,0.00019726,2]
[346304460,1734881455609,-500.0,0.00019726,2]
[346304461,1734881455619,-734.62,0.00019726,2]
[346304462,1734881455628,-823.27,0.00019726,2]
[346304463,1734881455638,-4351.28,0.00019726,2]
[346304464,1734881455647,-500.0,0.00019726,2]
[346304465,1734881455657,-500.0,0.00019726,2]
[346304466,1734881455666,-500.0,0.00019726,2]
[346304467,1734881455675,-150.0,0.00019727,2]
[346304468,1734881455685,-150.0,0.00019728,2]
[346304469,1734881455695,-150.0,0.00019729,2]
[346304470,1734881455705,-423.27634812,0.0001973,2]
[346304471,1734881455715,-150.0,0.00019735,2]
[346304472,1734881455724,-150.0,0.00019736,2]
[346304473,1734881455734,-150.0,0.00019737,2]
[346304474,1734881455743,-150.0,0.00019741,2]
[346304475,1734881455752,-150.0,0.00019742,2]
[346304476,1734881455762,-1500.0,0.00019743,2]
[346304477,1734881455775,-150.0,0.00019745,2]
[346304478,1734881455784,-150.0,0.00019748,2]
[346304479,1734881455794,-1500.0,0.00019749,2]
[346304480,1734881455803,-150.0,0.00019749,2]
[346304481,1734881455813,-208.0,0.0001975,2]
[346304482,1734881455822,-210.0,0.0001975,2]
[346304483,1734881455832,-203.0,0.0001975,2]
[346304484,1734881455841,-207.0,0.0001975,2]
[346304485,1734881455851,-150.0,0.00019752,2]
[346304486,1734881455861,-150.0,0.00019756,2]
[346304487,1734881455870,-150.0,0.00019756,2]
[346304488,1734881455880,-150.0,0.00019757,2]
[346304489,1734881455889,-150.0,0.00019764,2]
[346304490,1734881455900,-150.0,0.00019765,2]
[346304491,1734881455909,-300.0,0.00019767,2]
[346304492,1734881455919,-150.0,0.00019768,2]
[346304493,1734881455928,-150.0,0.00019771,2]
[346304494,1734881455938,-300.0,0.00019771,2]
[346304495,1734881455949,-150.0,0.00019772,2]
[346304496,1734881455958,-162.29978398,0.00019773,2]
[346304497,1734881455967,-509.23929976,0.00019773,2]
[346304498,1734881455977,-583.53894794,0.00019773,2]
[346304499,1734881455986,-504.82459546,0.00019773,2]
[346304500,1734881455995,-500.0,0.00019773,2]
[346304501,1734881456005,-500.20297702,0.00019773,2]
[346304502,1734881456014,-150.0,0.00019778,2]
[346304503,1734881456023,-150.0,0.00019779,2]
[346304504,1734881456032,-150.0,0.0001978,2]
[346304505,1734881456042,-150.0,0.00019782,2]
[346304506,1734881456051,-150.0,0.00019788,2]
[346304507,1734881456060,-150.0,0.00019788,2]
[346304508,1734881456070,-704.66312219,0.0001979,2]
[346304509,1734881456081,-1500.0,0.00019793,2]
[346304510,1734881456090,-150.0,0.00019796,2]
[346304511,1734881456099,-150.0,0.00019797,2]
[346304512,1734881456108,-150.0,0.00019798,2]
[346304513,1734881456117,-1000.0,0.000198,2]
[346304514,1734881456126,-220713.6874189,0.000198,2]
[346304515,1734881456136,-24401.304037,0.000198,2]
[346304516,1734881456145,-24401.304037,0.000198,2]
[346304517,1734881456155,-24401.304037,0.000198,2]
[346304518,1734881456164,-24401.304037,0.000198,2]
[346304519,1734881456175,-24401.304037,0.000198,2]
[346304520,1734881456184,-24401.304037,0.000198,2]
[346304521,1734881456195,-24401.304037,0.000198,2]
[346304522,1734881456205,-24401.304037,0.000198,2]
[346304523,1734881456215,-24401.304037,0.000198,2]
[346304524,1734881456224,-24401.304037,0.000198,2]
[346304525,1734881456233,-24401.304037,0.000198,2]
[346304526,1734881456243,-24401.304037,0.000198,2]
[346304527,1734881456253,-24401.304037,0.000198,2]
[346304528,1734881456262,-24401.304037,0.000198,2]
[346304529,1734881456271,-24401.304037,0.000198,2]
[346304530,1734881456280,-24401.304037,0.000198,2]
[346304531,1734881456289,-24401.304037,0.000198,2]
[346304532,1734881456299,-24401.304037,0.000198,2]
[346304533,1734881456308,-24401.304037,0.000198,2]
[346304534,1734881456318,-24401.304037,0.000198,2]
[346304535,1734881456329,-24401.304037,0.000198,2]
[346304536,1734881456339,-24401.304037,0.000198,2]
[346304537,1734881456349,-109751.92442705,0.000198,2]
[346304538,1734881456359,-56074.1512063,0.000198,2]
[346304539,1734881456368,-150.0,0.00019806,2]
[346304540,1734881456378,-1500.0,0.00019807,2]
[346304541,1734881456388,-150.0,0.00019807,2]
[346304542,1734881456397,-500.0,0.00019808,2]
[346304543,1734881456406,-1467.06986921,0.00019809,2]
[346304544,1734881456416,-21535.84535702,0.0001981,2]
[346304545,1734881456426,-150.0,0.00019813,2]
[346304546,1734881456435,-150.0,0.00019816,2]
[346304547,1734881456452,-150.0,0.00019823,2]
[346304548,1734881456467,-150.0,0.00019828,2]
[346304549,1734881456484,-150.0,0.00019828,2]
[346304550,1734881456501,-150.0,0.00019828,2]
[346304551,1734881456519,-1500.0,0.0001983,2]
[346304552,1734881456532,-1500.0,0.00019831,2]
[346304553,1734881456551,-1500.0,0.00019835,2]
[346304554,1734881456568,-150.0,0.00019839,2]
[346304555,1734881456585,-500.0,0.0001984,2]
[346304556,1734881456601,-150.0,0.00019841,2]
[346304557,1734881456624,-150.0,0.00019842,2]
[346304558,1734881456641,-150.0,0.00019843,2]
[346304559,1734881456658,-150.0,0.00019849,2]
[346304560,1734881456672,-150.0,0.0001985,2]
[346304561,1734881456691,-150.0,0.00019852,2]
[346304562,1734881456704,-1500.0,0.00019852,2]
[346304563,1734881456720,-619.41,0.00019862,2]
[346304564,1734881456735,-150.0,0.00019862,2]
[346304565,1734881456746,-150.0,0.00019866,2]
[346304566,1734881456761,-150.0,0.00019871,2]
[346304567,1734881456775,-150.0,0.00019871,2]
[346304568,1734881456789,-150.0,0.00019871,2]
[346304569,1734881456803,-150.0,0.00019872,2]
[346304570,1734881456820,-150.0,0.00019874,2]
[346304571,1734881456833,-23513.99892552,0.00019875,2]
[346304572,1734881456848,-150.0,0.00019875,2]
[346304573,1734881456862,-150.0,0.00019875,2]
[346304574,1734881456876,-150.0,0.00019875,2]
[346304575,1734881456888,-150.0,0.00019875,2]
[346304576,1734881456902,-3950.728,0.00019876,2]
[346304577,1734881456916,-199.921,0.00019876,2]
[346304578,1734881456929,-150.0,0.0001988,2]
[346304579,1734881456943,-150.0,0.00019882,2]
[346304580,1734881456956,-150.0,0.00019885,2]
[346304581,1734881456969,-150.0,0.00019894,2]
[346304582,1734881456983,-150.0,0.00019895,2]
[346304583,1734881456997,-100043.8403191,0.00019895,2]
[346304584,1734881457010,-150.0,0.00019896,2]
[346304585,1734881457024,-150.0,0.00019898,2]
[346304586,1734881457038,-150.0,0.00019899,2]
[346304587,1734881457051,-994.93290471,0.000199,2]
[346304588,1734881457065,-22002.1962,0.000199,2]
[346304589,1734881457082,-500.0,0.000199,2]
[346304590,1734881457097,-23373.54646504,0.000199,2]
[346304591,1734881457111,-15416.27835564,0.000199,2]
[346304592,1734881457125,-1467.06986921,0.000199,2]
[346304593,1734881457139,-1080.450673,0.000199,2]
[346304594,1734881457153,-1879266.9214688,0.000199,2]
[346304595,1734881457168,-15455.78905919,0.000199,2]
[346304596,1734881457182,-2160.0,0.000199,2]
[346304597,1734881457195,-150.0,0.00019903,2]
[346304598,1734881457210,-150.0,0.00019904,2]
[346304599,1734881457223,-150.0,0.00019904,2]
[346304600,1734881457240,-150.0,0.00019904,2]
[346304601,1734881457258,-516.85589827,0.00019905,2]
[346304602,1734881457272,-150.0,0.00019908,2]
[346304603,1734881457288,-150.0,0.00019909,2]
[346304604,1734881457303,-150.0,0.00019919,2]
[346304605,1734881457317,-150.0,0.00019921,2]
[346304606,1734881457331,-204.71391,0.00019921,2]
[346304607,1734881457345,-150.0,0.00019922,2]
[346304608,1734881457358,-150.0,0.00019922,2]
[346304609,1734881457372,-150.0,0.00019925,2]
[346304610,1734881457386,-150.0,0.00019926,2]
[346304611,1734881457401,-150.0,0.0001993,2]
[346304612,1734881457415,-150.0,0.00019933,2]
[346304613,1734881457429,-150.0,0.00019936,2]
[346304614,1734881457443,-1500.0,0.00019936,2]
[346304615,1734881457458,-150.0,0.00019937,2]
[346304616,1734881457473,-150.0,0.00019938,2]
[346304617,1734881457486,-1500.0,0.00019939,2]
[346304618,1734881457501,-150.0,0.00019942,2]
[346304619,1734881457515,-1256.18,0.00019945,2]
[346304620,1734881457530,-150.0,0.00019946,2]
[346304621,1734881457545,-150.0,0.00019947,2]
[346304622,1734881457560,-150.0,0.00019949,2]
[346304623,1734881457574,-150.0,0.00019951,2]
[346304624,1734881457588,-150.0,0.00019953,2]
[346304625,1734881457603,-1500.0,0.00019954,2]
[346304626,1734881457612,-1500.0,0.0001996,2]
[346304627,1734881457622,-49284.99050018,0.0001996,2]
[346304628,1734881457631,-150.0,0.00019962,2]
[346304629,1734881457641,-150.0,0.00019964,2]
[346304630,1734881457650,-150.0,0.00019964,2]
[346304631,1734881457660,-150.0,0.00019964,2]
[346304632,1734881457669,-150.0,0.00019964,2]
[346304633,1734881457832,-150.0,0.00019967,2]
[346304634,1734881457915,-150.0,0.00019969,2]
[346304635,1734881457927,-400.0,0.0001997,2]
[346304636,1734881457936,-552.17852518,0.0001997,2]
[346304637,1734881457948,-150.0,0.00019971,2]
[346304638,1734881457957,-500.89787548,0.00019973,2]
[346304639,1734881457966,-500.0,0.00019973,2]
[346304640,1734881457975,-500.0,0.00019973,2]
[346304641,1734881457985,-260.03028348,0.00019973,2]
[346304642,1734881457995,-159.71631024,0.00019973,2]
[346304643,1734881458005,-500.0,0.00019973,2]
[346304644,1734881458016,-150.0,0.00019973,2]
[346304645,1734881458027,-150.0,0.00019974,2]
[346304646,1734881458036,-150.0,0.00019976,2]
[346304647,1734881458045,-150.0,0.00019976,2]
[346304648,1734881458055,-150.0,0.00019976,2]
[346304649,1734881458065,-3474662.06300808,0.0001998,2]
[346304650,1734881458074,-197.1,0.00019981,2]
[346304651,1734881458083,-150.0,0.00019982,2]
[346304652,1734881458092,-1920.31,0.00019984,2]
[346304653,1734881458101,-80097.40320666,0.00019985,2]
[346304654,1734881458110,-151.0,0.00019985,2]
[346304655,1734881458119,-262.81,0.00019985,2]
[346304656,1734881458128,-198.01,0.00019985,2]
[346304657,1734881458137,-151.0,0.00019985,2]
[346304658,1734881458146,-151.0,0.00019985,2]
[346304659,1734881458156,-151.0,0.00019985,2]
[346304660,1734881458165,-151.0,0.00019985,2]
[346304661,1734881458174,-151.0,0.00019985,2]
[346304662,1734881458183,-151.0,0.00019985,2]
[346304663,1734881458193,-151.0,0.00019985,2]
[346304664,1734881458206,-151.0,0.00019985,2]
[346304665,1734881458215,-151.0,0.00019985,2]
[346304666,1734881458224,-153.67,0.00019985,2]
[346304667,1734881458235,-154.0,0.00019989,2]
[346304668,1734881458244,-154.0,0.00019989,2]
[346304669,1734881458254,-154.0,0.00019989,2]
[346304670,1734881458263,-154.0,0.00019989,2]
[346304671,1734881458272,-154.0,0.00019989,2]
[346304672,1734881458281,-154.0,0.00019989,2]
[346304673,1734881458291,-154.0,0.00019989,2]
[346304674,1734881458300,-154.0,0.00019989,2]
[346304675,1734881458309,-154.0,0.00019989,2]
[346304676,1734881458318,-154.0,0.00019989,2]
[346304677,1734881458327,-154.0,0.00019989,2]
[346304678,1734881458336,-154.0,0.00019989,2]
[346304679,1734881458346,-154.0,0.00019989,2]
[346304680,1734881458355,-245.57175388,0.00019989,2]
[346304681,1734881458364,-21311.78300961,0.0001999,2]
[346304682,1734881458375,-150.0,0.00019993,2]
[346304683,1734881458384,-390.35684671,0.00019996,2]
[346304684,1734881458394,-434.6816703,0.00019996,2]
[346304685,1734881458403,-941.4830317,0.00019996,2]
[346304686,1734881458413,-912.8140731,0.00019996,2]
[346304687,1734881458422,-884.1451146,0.00019996,2]
[346304688,1734881458432,-855.4761561,0.00019996,2]
[346304689,1734881458441,-826.8071975,0.00019996,2]
[346304690,1734881458457,-798.138239,0.00019996,2]
[346304691,1734881458466,-866.982481,0.00019996,2]
[346304692,1734881458476,-840.5821276,0.00019996,2]
[346304693,1734881458486,-814.1817741,0.00019996,2]
[346304694,1734881458495,-787.7814207,0.00019996,2]
[346304695,1734881458505,-761.3810672,0.00019996,2]
[346304696,1734881458514,-734.9807138,0.00019996,2]
[346304697,1734881458523,-868.7505442,0.00019996,2]
[346304698,1734881458533,-845.5925121,0.00019996,2]
[346304699,1734881458542,-822.4344801,0.00019996,2]
[346304700,1734881458551,-799.276448,0.00019996,2]
[346304701,1734881458561,-776.118416,0.00019996,2]
[346304702,1734881458571,-752.9603839,0.00019996,2]
[346304703,1734881458580,-199.4529165,0.00019996,2]
[346304704,1734881458590,-194.1361578,0.00019996,2]
[346304705,1734881458600,-188.8193991,0.00019996,2]
[346304706,1734881458609,-183.5026404,0.00019996,2]
[346304707,1734881458619,-178.1858816,0.00019996,2]
[346304708,1734881458628,-172.8691229,0.00019996,2]
[346304709,1734881458637,-313.9692332,0.00019996,2]
[346304710,1734881458647,-305.5998461,0.00019996,2]
[346304711,1734881458657,-297.230459,0.00019996,2]
[346304712,1734881458666,-288.861072,0.00019996,2]
[346304713,1734881458675,-280.4916849,0.00019996,2]
[346304714,1734881458685,-272.1222978,0.00019996,2]
[346304715,1734881458695,-190.8996872,0.00019996,2]
[346304716,1734881458704,-185.8109294,0.00019996,2]
[346304717,1734881458714,-180.7221716,0.00019996,2]
[346304718,1734881458724,-175.6334139,0.00019996,2]
[346304719,1734881458733,-170.5446561,0.00019996,2]
[346304720,1734881458743,-165.4558984,0.00019996,2]
[346304721,1734881458752,-281464.05707426,0.00019997,2]
[346304722,1734881458762,-1920.31,0.00019998,2]
[346304723,1734881458774,-300.0,0.00019999,2]
[346304724,1734881458786,-666.0,0.00019999,2]
[346304725,1734881458795,-619.41,0.00019999,2]
[346304726,1734881458805,-150.0,0.00019999,2]
[346304727,1734881458816,-1585.3,0.00019999,2]
[346304728,1734881458825,-1917.94,0.00019999,2]
[346304729,1734881458835,-812.1,0.00019999,2]
[346304730,1734881458844,-11737.39,0.00019999,2]
[346304731,1734881458855,-1135.46,0.00019999,2]
[346304732,1734881458864,-500.0,0.00019999,2]
[346304733,1734881458873,-1000.0,0.00019999,2]
[346304734,1734881458882,-712.18,0.00019999,2]
[346304735,1734881458892,-500.0,0.00019999,2]
[346304736,1734881458901,-94880.87474971,0.00019999,2]
[346304737,1734881458910,-1317.01,0.00019999,2]
[346304738,1734881458920,-3059.92,0.00019999,2]
[346304739,1734881458930,-1920.31,0.00019999,2]
[346304740,1734881458940,-1920.31,0.00019999,2]
[346304741,1734881458951,-1920.31,0.00019999,2]
[346304742,1734881458960,-1920.31,0.00019999,2]
[346304743,1734881458970,-1920.31,0.00019999,2]
[346304744,1734881458979,-1920.31,0.00019999,2]
[346304745,1734881458989,-1920.31,0.00019999,2]
[346304746,1734881459000,-1920.31,0.00019999,2]
[346304747,1734881459009,-1920.31,0.00019999,2]
[346304748,1734881459019,-1920.31,0.00019999,2]
[346304749,1734881459029,-1920.31,0.00019999,2]
[346304750,1734881459039,-1920.33,0.00019999,2]
[346304751,1734881459048,-5348979.54464598,0.0002,3]
[346304752,1734881459057,-34574.66921908,0.0002,3]
[346304753,1734881459067,-31686650.867397,0.0002,2]
[346304754,1734881459076,-3392.6406025,0.0002,2]
[346304755,1734881459086,-71570.29635819,0.0002,2]
[346304756,1734881459098,-22613460.62094183,0.0002,2]
[346304757,1734881459107,-202.0,0.0002,2]
[346304758,1734881459117,-500.0,0.0002,2]
[346304759,1734881459127,-6834.11484733,0.0002,3]
[346304760,1734881459137,-49762.12321431,0.0002,3]
[346304761,1734881459146,-150.0,0.0002,2]
[346304762,1734881459156,-202.6,0.0002,2]
[346304763,1734881459166,-2110.0,0.0002,2]
[346304764,1734881459175,-27180.1709375,0.0002,60]
[346304765,1734881459185,-65344.39489571,0.0002,2]
[346304766,1734881459195,-7500.0,0.0002,2]
[346304767,1734881459205,-3822.01839656,0.0002,2]
[346304768,1734881459214,-102976.38601718,0.0002,2]
[346304769,1734881459224,-9755883.31281576,0.0002,2]
[346304770,1734881459233,-243029.48965727,0.0002,2]
[346304771,1734881459242,-13130.6118413,0.0002,10]
[346304772,1734881459252,-50000.0,0.0002,4]
[346304773,1734881459262,-3326.0,0.0002,2]
[346304774,1734881459271,-13132.18903098,0.0002,30]
[346304775,1734881459281,-22762.08211053,0.0002,5]
[346304776,1734881459290,-1012.65670669,0.0002,3]
[346304777,1734881459300,-50000.0,0.0002,10]
[346304778,1734881459310,-50000.0,0.0002,5]
[346304779,1734881459319,-50000.0,0.0002,6]
[346304780,1734881459329,-50000.0,0.0002,5]
[346304781,1734881459338,-17795.7501974,0.0002,5]
[346304782,1734881459348,-2788.05,0.0002,2]
[346304783,1734881459357,-1502056.90273304,0.0002,2]
[346304784,1734881459366,-19627.03,0.0002,2]
[346304785,1734881459376,-500.0,0.0002,2]
[346304786,1734881459385,-499.87,0.0002,2]
[346304787,1734881459394,-3000.0,0.0002,5]
[346304788,1734881459404,-10021.03330535,0.0002,7]
[346304789,1734881459414,-3573344.38493863,0.0002,2]
[346304790,1734881459423,-13726.17246662,0.0002,2]
[346304791,1734881459433,-10000.0,0.0002,2]
[346304792,1734881459443,-250.0,0.0002,2]
[346304793,1734881459453,-167.0,0.0002,2]
[346304794,1734881459464,-228.0,0.0002,2]
[346304795,1734881459474,-158.372,0.0002,2]
[346304796,1734881459484,-212.449,0.0002,2]
[346304797,1734881459494,-228.176,0.0002,2]
[346304798,1734881459504,-150.0,0.0002,2]
[346304799,1734881459513,-150.899,0.0002,2]
[346304800,1734881459523,-202.6,0.0002,2]
[346304801,1734881459532,-2000.0,0.0002,2]
[346304802,1734881459542,-1000.0,0.0002,2]
[346304803,1734881459551,-1000.0,0.0002,2]
[346304804,1734881459561,-92806.0,0.0002,2]
[346304805,1734881459570,-1000.0,0.0002,2]
[346304806,1734881459580,-1000.0,0.0002,2]
[346304807,1734881459589,-1000.0,0.0002,2]
[346304808,1734881459599,-1000.0,0.0002,2]
[346304809,1734881459608,-1000.0,0.0002,2]
[346304810,1734881459619,-1000.0,0.0002,2]
[346304811,1734881459629,-1000.0,0.0002,2]
[346304812,1734881459639,-1000.0,0.0002,2]
[346304813,1734881459648,-1000.0,0.0002,2]
[346304814,1734881459657,-1000.0,0.0002,2]
[346304815,1734881459667,-1000.0,0.0002,2]
[346304816,1734881459676,-1000.0,0.0002,2]
[346304817,1734881459686,-1000.0,0.0002,2]
[346304818,1734881459696,-1000.0,0.0002,2]
[346304819,1734881459705,-1000.0,0.0002,2]
[346304820,1734881459715,-1000.0,0.0002,2]
[346304821,1734881459733,-1000.0,0.0002,2]
[346304822,1734881459748,-1000.0,0.0002,2]